fUSD/lending_fUSD_20251229
["ID","MTS","AMOUNT","RATE_DAILY","PERIOD"]
[399997150,1766997040948,-500.0,0.00014158,2]
[399997151,1766997040958,-427.0,0.00014158,2]
[399997152,1766997040967,-500.0,0.00014158,2]
[399997153,1766997040977,-500.0,0.00014158,2]
[399997154,1766997040987,-500.0,0.00014186,2]
[399997155,1766997040996,-856.0,0.00014186,2]
[399997156,1766997041007,-904.0,0.00014186,2]
[399997157,1766997041020,-500.0,0.00014186,2]
[399997158,1766997041030,-427.0,0.00014186,2]
[399997159,1766997041039,-500.0,0.00014186,2]
[399997160,1766997041050,-423.15558239,0.00014186,2]
[399997161,1766997041059,-150.0,0.00014213,2]
[399997162,1766997041069,-150.0,0.00014213,2]
[399997163,1766997041078,-150.0,0.00014213,2]
[399997164,1766997041088,-150.0,0.00014213,2]
[399997165,1766997041098,-150.0,0.00014213,2]
[399997166,1766997041107,-500.0,0.00014213,2]
[399997167,1766997041117,-150.0,0.00014213,2]
[399997168,1766997041126,-154.6370732,0.00014213,2]
[399997169,1766997041137,-150.0,0.00014213,2]
[399997170,1766997041149,-500.0,0.00014213,2]
[399997171,1766997041159,-500.0,0.00014213,2]
[399997172,1766997041170,-500.0,0.00014213,2]
[399997173,1766997041179,-519.0,0.00014213,2]
[399997174,1766997041188,-150.0,0.00014213,2]
[399997175,1766997041198,-150.0,0.00014213,2]
[399997176,1766997041208,-500.0,0.00014213,2]
[399997177,1766997041217,-856.0,0.00014213,2]
[399997178,1766997041227,-904.0,0.00014213,2]
[399997179,1766997041237,-500.0,0.00014213,2]
[399997180,1766997041247,-427.0,0.00014213,2]
[399997181,1766997041258,-347.13609629,0.00014213,2]
[399997182,1766997041267,-335.77,0.00014225,2]
[399997183,1766997041277,-150.0,0.0001424,2]
[399997184,1766997041286,-150.0,0.0001424,2]
[399997185,1766997041295,-154.54206526,0.0001424,2]
[399997186,1766997041305,-255.91007522,0.0001424,2]
[399997187,1766997041315,-500.0,0.0001424,2]
[399997188,1766997041325,-150.0,0.0001424,2]
[399997189,1766997041335,-500.0,0.0001424,2]
[399997190,1766997041346,-500.0,0.0001424,2]
[399997191,1766997041355,-500.0,0.0001424,2]
[399997192,1766997041364,-519.0,0.0001424,2]
[399997193,1766997041374,-500.0,0.00014241,2]
[399997194,1766997041383,-856.0,0.00014241,2]
[399997195,1766997041392,-904.0,0.00014241,2]
[399997196,1766997041402,-500.0,0.00014241,2]
[399997197,1766997041411,-427.0,0.00014241,2]
[399997198,1766997041420,-232.63349637,0.00014268,2]
[399997199,1766997041430,-150.0,0.00014268,2]
[399997200,1766997041439,-259.1272519,0.00014268,2]
[399997201,1766997041449,-200.0,0.00014268,2]
[399997202,1766997041458,-641.75453551,0.00014268,2]
[399997203,1766997041468,-500.0,0.00014268,2]
[399997204,1766997041477,-500.0,0.00014268,2]
[399997205,1766997041487,-519.0,0.00014268,2]
[399997206,1766997041497,-500.0,0.00014268,2]
[399997207,1766997041506,-856.0,0.00014268,2]
[399997208,1766997041516,-904.0,0.00014268,2]
[399997209,1766997041526,-500.0,0.00014268,2]
[399997210,1766997041536,-427.0,0.00014268,2]
[399997211,1766997041545,-150.0,0.00014295,2]
[399997212,1766997041555,-500.0,0.00014295,2]
[399997213,1766997041564,-500.0,0.00014295,2]
[399997214,1766997041574,-519.0,0.00014295,2]
[399997215,1766997041583,-500.0,0.00014295,2]
[399997216,1766997041592,-856.0,0.00014295,2]
[399997217,1766997041601,-904.0,0.00014295,2]
[399997218,1766997041611,-500.0,0.00014295,2]
[399997219,1766997041620,-427.0,0.00014295,2]
[399997220,1766997041629,-6794.10788247,0.000143,2]
[399997221,1766997041639,-251.75948857,0.00014323,2]
[399997222,1766997041648,-500.0,0.00014323,2]
[399997223,1766997041658,-226.48202685,0.00014323,2]
[399997224,1766997041667,-519.0,0.00014323,2]
[399997225,1766997041677,-500.0,0.00014323,2]
[399997226,1766997041686,-856.0,0.00014323,2]
[399997227,1766997041696,-904.0,0.00014323,2]
[399997228,1766997041705,-500.0,0.00014323,2]
[399997229,1766997041715,-427.0,0.00014323,2]
[399997230,1766997041726,-289.5534,0.00014332,2]
[399997231,1766997041735,-500.0,0.0001435,2]
[399997232,1766997041745,-519.0,0.0001435,2]
[399997233,1766997041754,-500.0,0.0001435,2]
[399997234,1766997041763,-856.0,0.0001435,2]
[399997235,1766997041773,-904.0,0.0001435,2]
[399997236,1766997041782,-500.0,0.0001435,2]
[399997237,1766997041791,-427.0,0.0001435,2]
[399997238,1766997041800,-500.0,0.00014377,2]
[399997239,1766997041809,-519.0,0.00014377,2]
[399997240,1766997041818,-500.0,0.00014378,2]
[399997241,1766997041828,-856.0,0.00014378,2]
[399997242,1766997041838,-904.0,0.00014378,2]
[399997243,1766997041847,-500.0,0.00014378,2]
[399997244,1766997041858,-427.0,0.00014378,2]
[399997245,1766997041871,-2500.0,0.00014388,2]
[399997246,1766997041881,-1730.219,0.00014389,2]
[399997247,1766997041890,-150.83,0.00014389,2]
[399997248,1766997041899,-500.0,0.00014405,2]
[399997249,1766997041910,-519.0,0.00014405,2]
[399997250,1766997041919,-500.0,0.00014405,2]
[399997251,1766997041928,-856.0,0.00014405,2]
[399997252,1766997041938,-904.0,0.00014405,2]
[399997253,1766997041948,-500.0,0.00014405,2]
[399997254,1766997041958,-427.0,0.00014405,2]
[399997255,1766997041967,-515.45197289,0.00014414,2]
[399997256,1766997041978,-13791.5779931,0.00014422,2]
[399997257,1766997041988,-500.0,0.00014432,2]
[399997258,1766997041998,-519.0,0.00014432,2]
[399997259,1766997042007,-500.0,0.00014432,2]
[399997260,1766997042016,-856.0,0.00014432,2]
[399997261,1766997042026,-904.0,0.00014432,2]
[399997262,1766997042035,-500.0,0.00014432,2]
[399997263,1766997042045,-427.0,0.00014432,2]
[399997264,1766997042055,-500.0,0.0001446,2]
[399997265,1766997042064,-519.0,0.0001446,2]
[399997266,1766997042073,-523.70653602,0.0001446,2]
[399997267,1766997042083,-856.0,0.0001446,2]
[399997268,1766997042093,-904.0,0.0001446,2]
[399997269,1766997042102,-369.74524593,0.0001446,2]
[399997270,1766997042112,-427.0,0.0001446,2]
[399997271,1766997042121,-173.55490716,0.00014477,2]
[399997272,1766997042131,-166.66,0.00014478,2]
[399997273,1766997042140,-200.0,0.0001448,2]
[399997274,1766997042150,-207.4,0.0001448,2]
[399997275,1766997042159,-582.51895269,0.0001448,2]
[399997276,1766997042169,-500.0,0.00014487,2]
[399997277,1766997042178,-519.0,0.00014487,2]
[399997278,1766997042188,-500.0,0.00014487,2]
[399997279,1766997042198,-500.0,0.00014487,2]
[399997280,1766997042207,-500.0,0.00014487,2]
[399997281,1766997042216,-500.0,0.00014487,2]
[399997282,1766997042225,-500.0,0.00014487,2]
[399997283,1766997042235,-500.0,0.00014487,2]
[399997284,1766997042244,-500.0,0.00014487,2]
[399997285,1766997042254,-500.0,0.00014487,2]
[399997286,1766997042263,-500.0,0.00014487,2]
[399997287,1766997042274,-500.0,0.00014487,2]
[399997288,1766997042283,-500.0,0.00014487,2]
[399997289,1766997042293,-500.0,0.00014487,2]
[399997290,1766997042302,-500.0,0.00014487,2]
[399997291,1766997042312,-500.0,0.00014487,2]
[399997292,1766997042322,-500.0,0.00014487,2]
[399997293,1766997042332,-500.0,0.00014487,2]
[399997294,1766997042342,-500.0,0.00014487,2]
[399997295,1766997042352,-500.0,0.00014487,2]
[399997296,1766997042362,-500.0,0.00014487,2]
[399997297,1766997042371,-500.0,0.00014487,2]
[399997298,1766997042382,-500.0,0.00014487,2]
[399997299,1766997042391,-500.0,0.00014487,2]
[399997300,1766997042401,-500.0,0.00014487,2]
[399997301,1766997042411,-500.0,0.00014487,2]
[399997302,1766997042421,-500.0,0.00014487,2]
[399997303,1766997042430,-500.0,0.00014487,2]
[399997304,1766997042440,-500.0,0.00014487,2]
[399997305,1766997042449,-500.0,0.00014487,2]
[399997306,1766997042459,-500.0,0.00014487,2]
[399997307,1766997042469,-500.0,0.00014487,2]
[399997308,1766997042480,-500.0,0.00014487,2]
[399997309,1766997042665,-500.0,0.00014487,2]
[399997310,1766997042675,-500.0,0.00014487,2]
[399997311,1766997042686,-500.0,0.00014487,2]
[399997312,1766997042696,-500.0,0.00014487,2]
[399997313,1766997042706,-500.0,0.00014487,2]
[399997314,1766997042715,-603.27394032,0.00014487,2]
[399997315,1766997042726,-500.0,0.00014487,2]
[399997316,1766997042738,-301.19153459,0.00014487,2]
[399997317,1766997042750,-1373.8,0.00014487,2]
[399997318,1766997042759,-500.0,0.00014487,2]
[399997319,1766997042770,-500.0,0.00014487,2]
[399997320,1766997042780,-500.0,0.00014487,2]
[399997321,1766997042789,-500.0,0.00014487,2]
[399997322,1766997042799,-500.0,0.00014487,2]
[399997323,1766997042808,-500.0,0.00014487,2]
[399997324,1766997042817,-500.0,0.00014487,2]
[399997325,1766997042827,-500.0,0.00014487,2]
[399997326,1766997042835,-500.0,0.00014487,2]
[399997327,1766997042845,-500.0,0.00014487,2]
[399997328,1766997042854,-500.0,0.00014487,2]
[399997329,1766997042865,-500.0,0.00014487,2]
[399997330,1766997042875,-500.0,0.00014487,2]
[399997331,1766997042885,-500.0,0.00014487,2]
[399997332,1766997042894,-500.0,0.00014487,2]
[399997333,1766997042903,-583.50975482,0.00014487,2]
[399997334,1766997042914,-500.0,0.00014487,2]
[399997335,1766997042923,-500.0,0.00014487,2]
[399997336,1766997042932,-500.0,0.00014487,2]
[399997337,1766997042942,-500.0,0.00014487,2]
[399997338,1766997042952,-500.0,0.00014487,2]
[399997339,1766997042961,-500.0,0.00014487,2]
[399997340,1766997042971,-500.0,0.00014487,2]
[399997341,1766997042981,-500.0,0.00014487,2]
[399997342,1766997042991,-500.0,0.00014487,2]
[399997343,1766997043001,-500.0,0.00014487,2]
[399997344,1766997043011,-500.0,0.00014487,2]
[399997345,1766997043021,-500.0,0.00014487,2]
[399997346,1766997043030,-500.0,0.00014487,2]
[399997347,1766997043040,-500.0,0.00014487,2]
[399997348,1766997043049,-500.0,0.00014487,2]
[399997349,1766997043058,-500.0,0.00014487,2]
[399997351,1766997043068,-500.0,0.00014487,2]
[399997352,1766997043078,-502.80913192,0.00014487,2]
[399997353,1766997043087,-500.0,0.00014487,2]
[399997355,1766997043100,-500.0,0.00014487,2]
[399997357,1766997043110,-500.0,0.00014487,2]
[399997358,1766997043119,-500.0,0.00014487,2]
[399997359,1766997043129,-500.0,0.00014487,2]
[399997360,1766997043138,-500.0,0.00014487,2]
[399997361,1766997043148,-500.0,0.00014487,2]
[399997362,1766997043157,-513.92046387,0.00014487,2]
[399997363,1766997043167,-500.0,0.00014487,2]
[399997364,1766997043176,-500.0,0.00014487,2]
[399997365,1766997043186,-500.0,0.00014487,2]
[399997366,1766997043195,-500.0,0.00014487,2]
[399997367,1766997043205,-500.0,0.00014487,2]
[399997368,1766997043214,-500.0,0.00014487,2]
[399997369,1766997043223,-500.0,0.00014487,2]
[399997370,1766997043233,-500.0,0.00014487,2]
[399997371,1766997043242,-500.0,0.00014487,2]
[399997372,1766997043252,-500.0,0.00014487,2]
[399997373,1766997043262,-500.0,0.00014487,2]
[399997374,1766997043270,-500.0,0.00014487,2]
[399997375,1766997043280,-856.0,0.00014487,2]
[399997376,1766997043290,-904.0,0.00014487,2]
[399997377,1766997043300,-427.0,0.00014487,2]
[399997378,1766997043311,-500.0,0.00014514,2]
[399997379,1766997043321,-519.0,0.00014514,2]
[399997380,1766997043331,-856.0,0.00014515,2]
[399997381,1766997043341,-904.0,0.00014515,2]
[399997382,1766997043351,-500.0,0.00014542,2]
[399997383,1766997043361,-519.0,0.00014542,2]
[399997384,1766997043371,-856.0,0.00014542,2]
[399997385,1766997043380,-904.0,0.00014542,2]
[399997386,1766997043390,-500.0,0.00014569,2]
[399997387,1766997043400,-519.0,0.00014569,2]
[399997388,1766997043410,-856.0,0.00014569,2]
[399997389,1766997043419,-904.0,0.00014569,2]
[399997390,1766997043429,-245.77433719,0.00014573,2]
[399997391,1766997043438,-500.0,0.00014573,2]
[399997392,1766997043447,-277.0265309,0.00014573,2]
[399997393,1766997043457,-344.9097998,0.00014573,2]
[399997394,1766997043466,-500.0,0.00014573,2]
[399997395,1766997043476,-165.50508923,0.00014573,2]
[399997396,1766997043486,-201.41739586,0.00014573,2]
[399997397,1766997043495,-504.1114483,0.00014573,2]
[399997398,1766997043506,-473.10310192,0.00014597,2]
[399997399,1766997043515,-519.0,0.00014597,2]
[399997400,1766997043525,-856.0,0.00014597,2]
[399997401,1766997043534,-519.0,0.00014624,2]
[399997402,1766997043544,-873.85563853,0.00014624,2]
[399997403,1766997043553,-519.0,0.00014651,2]
[399997404,1766997043563,-519.0,0.00014679,2]
[399997405,1766997043572,-519.0,0.00014706,2]
[399997406,1766997043583,-13791.5779931,0.00014732,2]
[399997407,1766997043593,-519.0,0.00014734,2]
[399997408,1766997043604,-166.66,0.00014759,2]
[399997409,1766997043614,-519.0,0.00014761,2]
[399997410,1766997043624,-1373.8,0.00014761,2]
[399997411,1766997043633,-420.0,0.00014777,2]
[399997412,1766997043642,-519.0,0.00014788,2]
[399997413,1766997043651,-195.0,0.00014795,2]
[399997414,1766997043660,-436.96815083,0.00014795,2]
[399997415,1766997043670,-5000.0,0.00014795,2]
[399997416,1766997043679,-374.29921916,0.00014795,2]
[399997417,1766997043689,-250.0,0.00014795,2]
[399997418,1766997043699,-519.0,0.00014816,2]
[399997419,1766997043708,-523.0,0.00014843,2]
[399997420,1766997043718,-215.15,0.00014899,2]
[399997421,1766997043728,-227.8,0.0001496,2]
[399997422,1766997043737,-335.77,0.00014973,2]
[399997423,1766997043746,-4550.02970715,0.00014999,2]
[399997424,1766997043756,-2042.7376147,0.00015,2]
[399997425,1766997043766,-5934.99281096,0.00015,2]
[399997426,1766997043776,-1373.8,0.00015035,2]
[399997427,1766997043786,-13791.5779931,0.00015041,2]
[399997428,1766997043798,-294.57177535,0.00015121,2]
[399997429,1766997043807,-242.0,0.00015121,2]
[399997430,1766997043818,-151.0,0.00015214,2]
[399997431,1766997043828,-151.0,0.00015214,2]
[399997432,1766997043838,-255.0,0.00015255,2]
[399997433,1766997043850,-2628.09,0.00015255,2]
[399997434,1766997043859,-150.0,0.00015288,2]
[399997435,1766997043873,-156.00800985,0.00015288,2]
[399997436,1766997043884,-150.0,0.00015288,2]
[399997437,1766997043894,-150.0,0.00015288,2]
[399997438,1766997043904,-150.0,0.00015288,2]
[399997439,1766997043915,-150.0,0.00015288,2]
[399997440,1766997043925,-152.26654522,0.00015288,2]
[399997441,1766997043939,-151.41609779,0.00015288,2]
[399997442,1766997043949,-151.85727785,0.00015288,2]
[399997443,1766997043959,-150.0,0.00015288,2]
[399997444,1766997043968,-150.0,0.00015288,2]
[399997445,1766997043978,-1373.8,0.00015309,2]
[399997446,1766997043988,-13791.5779931,0.00015351,2]
[399997447,1766997043999,-150.0,0.00015418,2]
[399997448,1766997044008,-150.0,0.00015458,2]
[399997449,1766997044021,-13943.91870157,0.00015485,2]
[399997450,1766997044032,-4030.06,0.0001549,2]
[399997451,1766997044042,-150.0,0.00015549,2]
[399997452,1766997044051,-1373.8,0.00015583,2]
[399997453,1766997044061,-150.0,0.00015627,2]
[399997454,1766997044072,-13791.5779931,0.00015661,2]
[399997455,1766997044081,-150.0,0.0001568,2]
[399997456,1766997044092,-150.0,0.00015712,2]
[399997457,1766997044103,-150.0,0.00015712,2]
[399997458,1766997044114,-335.77,0.00015722,2]
[399997459,1766997044124,-188.45,0.00015777,2]
[399997460,1766997044139,-150.0,0.00015797,2]
[399997461,1766997044149,-150.0,0.0001581,2]
[399997462,1766997044159,-999.0,0.00015832,3]
[399997463,1766997044168,-13943.91870157,0.00015842,2]
[399997464,1766997044178,-150.0,0.00015854,2]
[399997465,1766997044187,-1373.8,0.00015857,2]
[399997466,1766997044197,-150.0,0.00015941,2]
[399997467,1766997044206,-494.44261993,0.00015945,2]
[399997468,1766997044215,-150.0,0.00015967,2]
[399997469,1766997044225,-13791.5779931,0.00015971,2]
[399997470,1766997044234,-204.58187563,0.00015973,2]
[399997471,1766997044243,-530.70388926,0.00015973,2]
[399997472,1766997044253,-13059.6020301,0.00016,2]
[399997473,1766997044262,-117599.1752179,0.00016,2]
[399997474,1766997044271,-7456.42285451,0.00016,4]
[399997475,1766997044281,-150.0,0.00016072,2]
[399997476,1766997044291,-1373.8,0.00016131,2]
[399997477,1766997044300,-150.0,0.00016137,2]
[399997478,1766997044311,-150.0,0.00016137,2]
[399997479,1766997044320,-150.0,0.00016137,2]
[399997480,1766997044330,-150.0,0.00016137,2]
[399997481,1766997044340,-545.0,0.00016197,2]
[399997482,1766997044351,-13943.91870157,0.000162,2]
[399997483,1766997044360,-5000.00622462,0.000162,5]
[399997484,1766997044369,-150.0,0.00016202,2]
[399997485,1766997044379,-13791.5779931,0.0001628,2]
[399997486,1766997044389,-151.0,0.00016281,2]
[399997487,1766997044398,-151.0,0.00016281,2]
[399997488,1766997044408,-151.0,0.00016281,2]
[399997489,1766997044417,-151.0,0.00016281,2]
[399997490,1766997044427,-151.0,0.00016281,2]
[399997491,1766997044437,-150.0,0.00016307,2]
[399997492,1766997044447,-150.0,0.00016333,2]
[399997493,1766997044457,-1373.8,0.00016405,2]
[399997494,1766997044466,-500.0,0.00016416,2]
[399997495,1766997044476,-500.0,0.00016416,2]
[399997496,1766997044485,-500.0,0.00016416,2]
[399997497,1766997044495,-500.0,0.00016416,2]
[399997498,1766997044504,-500.0,0.00016416,2]
[399997499,1766997044513,-1000.0,0.00016416,2]
[399997501,1766997044523,-500.0,0.00016416,2]
[399997503,1766997044532,-1000.0,0.00016416,2]
[399997505,1766997044542,-500.0,0.00016416,2]
[399997507,1766997044551,-500.0,0.00016416,2]
[399997508,1766997044560,-1000.0,0.00016416,2]
[399997509,1766997044570,-500.0,0.00016416,2]
[399997510,1766997044579,-500.0,0.00016416,2]
[399997511,1766997044589,-500.0,0.00016416,2]
[399997512,1766997044598,-1000.0,0.00016416,2]
[399997513,1766997044608,-543.58186298,0.00016416,2]
[399997514,1766997044617,-500.0,0.00016416,2]
[399997515,1766997044628,-500.0,0.00016416,2]
[399997516,1766997044637,-1000.0,0.00016416,2]
[399997517,1766997044647,-500.0,0.00016416,2]
[399997518,1766997044656,-322.6107,0.00016416,2]
[399997519,1766997044665,-554.99798309,0.00016416,2]
[399997520,1766997044674,-1000.0,0.00016416,2]
[399997521,1766997044683,-500.0,0.00016416,2]
[399997522,1766997044694,-250.0,0.00016416,2]
[399997523,1766997044703,-1000.0,0.00016416,2]
[399997524,1766997044713,-500.0,0.00016416,2]
[399997525,1766997044723,-250.0,0.00016416,2]
[399997526,1766997044732,-250.0,0.00016416,2]
[399997527,1766997044742,-1000.0,0.00016416,2]
[399997528,1766997044753,-250.0,0.00016416,2]
[399997529,1766997044764,-500.0,0.00016416,2]
[399997530,1766997044773,-627.18626663,0.00016416,2]
[399997531,1766997044783,-250.0,0.00016416,2]
[399997532,1766997044793,-250.0,0.00016416,2]
[399997533,1766997044803,-500.0,0.00016416,2]
[399997534,1766997044813,-250.0,0.00016416,2]
[399997535,1766997044823,-250.0,0.00016416,2]
[399997536,1766997044832,-250.0,0.00016416,2]
[399997537,1766997044842,-250.0,0.00016416,2]
[399997538,1766997044851,-250.0,0.00016416,2]
[399997539,1766997044860,-250.0,0.00016416,2]
[399997540,1766997044872,-250.0,0.00016416,2]
[399997541,1766997044881,-250.0,0.00016416,2]
[399997542,1766997044890,-250.0,0.00016416,2]
[399997543,1766997044900,-500.0,0.00016416,2]
[399997544,1766997044911,-250.0,0.00016416,2]
[399997545,1766997044922,-250.0,0.00016416,2]
[399997546,1766997044932,-250.0,0.00016416,2]
[399997547,1766997044943,-500.0,0.00016416,2]
[399997548,1766997044953,-1555.5,0.00016416,2]
[399997549,1766997044962,-250.0,0.00016416,2]
[399997550,1766997044971,-292.94279304,0.00016416,2]
[399997551,1766997044981,-250.0,0.00016416,2]
[399997552,1766997044990,-250.0,0.00016416,2]
[399997553,1766997045000,-250.0,0.00016416,2]
[399997554,1766997045009,-250.0,0.00016416,2]
[399997555,1766997045020,-250.0,0.00016416,2]
[399997556,1766997045029,-282.85294632,0.00016416,2]
[399997557,1766997045038,-250.0,0.00016416,2]
[399997558,1766997045048,-200.0,0.00016416,2]
[399997559,1766997045057,-207.4,0.00016416,2]
[399997560,1766997045067,-215.0738,0.00016416,2]
[399997561,1766997045077,-223.0315306,0.00016416,2]
[399997562,1766997045086,-231.28369723,0.00016416,2]
[399997563,1766997045096,-239.84119403,0.00016416,2]
[399997564,1766997045106,-620.0,0.00016416,2]
[399997565,1766997045117,-248.71531821,0.00016416,2]
[399997566,1766997045127,-257.91778498,0.00016416,2]
[399997567,1766997045136,-150.0,0.0001642,2]
[399997568,1766997045145,-500.0,0.00016438,2]
[399997569,1766997045154,-500.0,0.00016438,2]
[399997570,1766997045163,-5994.18,0.00016438,2]
[399997571,1766997045172,-164.63,0.0001644,2]
[399997572,1766997045182,-150.0,0.00016464,2]
[399997573,1766997045191,-500.0,0.00016465,2]
[399997574,1766997045200,-335.77,0.00016471,2]
[399997575,1766997045210,-150.0,0.00016477,2]
[399997576,1766997045220,-500.0,0.00016493,2]
[399997577,1766997045231,-500.0,0.0001652,2]
[399997578,1766997045242,-500.0,0.00016548,2]
[399997579,1766997045251,-13943.91870157,0.00016557,2]
[399997580,1766997045259,-150.0,0.00016562,2]
[399997581,1766997045269,-150.0,0.00016562,2]
[399997582,1766997045279,-500.0,0.00016575,2]
[399997583,1766997045288,-13791.5779931,0.0001659,2]
[399997584,1766997045298,-150.0,0.00016594,2]
[399997585,1766997045307,-500.0,0.00016602,2]
[399997586,1766997045318,-500.0,0.0001663,2]
[399997587,1766997045328,-150.0,0.00016647,2]
[399997588,1766997045338,-500.0,0.00016657,2]
[399997589,1766997045348,-1373.8,0.00016679,2]
[399997590,1766997045357,-613.91329216,0.00016685,2]
[399997591,1766997045367,-151.0,0.00016708,2]
[399997592,1766997045377,-150.0,0.00016725,2]
[399997593,1766997045387,-150.0,0.00016816,2]
[399997594,1766997045396,-565.90026172,0.00016817,2]
[399997595,1766997045406,-500.0,0.00016817,2]
[399997596,1766997045416,-500.0,0.00016817,2]
[399997597,1766997045426,-500.0,0.00016817,2]
[399997598,1766997045437,-150.0,0.00016856,2]
[399997599,1766997045447,-2858.2953,0.000169,2]
[399997600,1766997045456,-28447.4601,0.000169,2]
[399997601,1766997045465,-1000.0,0.000169,2]
[399997602,1766997045475,-10085.4788,0.000169,2]
[399997603,1766997045485,-760.03204646,0.000169,2]
[399997604,1766997045494,-13791.5779931,0.000169,2]
[399997605,1766997045503,-3318.69533772,0.000169,2]
[399997606,1766997045514,-358.63955043,0.000169,2]
[399997607,1766997045523,-220.76404125,0.000169,2]
[399997608,1766997045533,-661.28003427,0.000169,2]
[399997609,1766997045544,-635.32997703,0.000169,2]
[399997610,1766997045553,-500.0,0.000169,2]
[399997611,1766997045562,-500.0,0.000169,2]
[399997612,1766997045572,-500.0,0.000169,2]
[399997613,1766997045581,-500.0,0.000169,2]
[399997614,1766997045591,-500.0,0.000169,2]
[399997615,1766997045600,-326.1895363,0.000169,2]
[399997616,1766997045610,-5855.8022643,0.000169,2]
[399997617,1766997045619,-214.291454,0.00016905,2]
[399997618,1766997045629,-13943.91870157,0.00016914,2]
[399997619,1766997045638,-1373.8,0.00016953,2]
[399997620,1766997045647,-459.0,0.00016959,2]
[399997621,1766997045657,-480.37694055,0.00016964,2]
[399997622,1766997045667,-5896.9626036,0.00016971,2]
[399997623,1766997045677,-150.0,0.00016973,2]
[399997624,1766997045687,-1888.2114384,0.00016978,2]
[399997625,1766997045696,-33377.1269947,0.00016979,2]
[399997626,1766997045706,-1659.6961076,0.00016979,2]
[399997627,1766997045715,-83398.620859,0.00016979,2]
[399997628,1766997045724,-161.919396,0.00016979,2]
[399997629,1766997045734,-151.0,0.00016979,2]
[399997630,1766997045744,-151.0,0.00016979,2]
[399997631,1766997045754,-151.0,0.00016979,2]
[399997632,1766997045764,-151.0,0.00016979,2]
[399997633,1766997045774,-151.0,0.00016979,2]
[399997634,1766997045783,-528.556647,0.00016979,2]
[399997635,1766997045792,-528.556647,0.00016979,2]
[399997636,1766997045802,-528.556647,0.00016979,2]
[399997637,1766997045812,-528.556647,0.00016979,2]
[399997638,1766997045821,-205.434949,0.00016979,2]
[399997639,1766997045831,-431.166658,0.00016979,2]
[399997640,1766997045841,-431.166658,0.00016979,2]
[399997641,1766997045850,-431.166658,0.00016979,2]
[399997642,1766997045860,-431.166658,0.00016979,2]
[399997643,1766997045873,-151.0,0.00016979,2]
[399997644,1766997045883,-151.0,0.00016979,2]
[399997645,1766997045892,-151.0,0.00016979,2]
[399997646,1766997045902,-151.0,0.00016979,2]
[399997647,1766997045913,-151.0,0.00016979,2]
[399997648,1766997045923,-151.0,0.00016986,2]
[399997649,1766997045932,-161.1699901,0.00016986,2]
[399997650,1766997045944,-157.83595805,0.00016986,2]
[399997651,1766997045954,-206.02935763,0.00016986,2]
[399997652,1766997045964,-160.09867247,0.00016986,2]
[399997653,1766997045974,-239.97655917,0.00016986,2]
[399997654,1766997045984,-151.89260944,0.00016986,2]
[399997655,1766997045994,-159.79234637,0.00016986,2]
[399997656,1766997046004,-52394.86,0.00016986,2]